[Event "Velká cena Novohradska - A"]
[Site "Nové Hrady, Czech Republic"]
[Date "2024.10.12"]
[Round "7.2"]
[White "Slonek, Richard"]
[Black "Gregor, Alexandr"]
[Result "0-1"]
[TimeControl "2x20min+10s/tah"]
[WhiteFideId "23744553"]
[BlackFideId "23735813"]
[WhiteElo "1524"]
[BlackElo "1813"]

1. e4 {[%clk 00:20:19]} {[%emt 00:05:11]} c5 {[%clk 00:20:19]} 2. d4 {[%clk
00:20:28]} cxd4 {[%emt 00:00:02]} 3. c3 dxc3 {[%clk 00:20:27]} {[%emt
00:00:10]} 4. Nxc3 {[%clk 00:20:47]} d6 {[%clk 00:20:23]} {[%emt 00:00:15]} 5.
Nf3 {[%clk 00:20:40]} {[%emt 00:00:17]} a6 {[%clk 00:20:32]} 6. Be3 {[%clk
00:20:42]} {[%emt 00:00:08]} Nc6 {[%clk 00:20:40]} {[%emt 00:00:02]} 7. Bc4
{[%clk 00:20:48]} {[%emt 00:00:05]} Nf6 {[%clk 00:20:32]} {[%emt 00:00:17]} 8.
Qd2 {[%clk 00:20:49]} {[%emt 00:00:09]} e6 {[%clk 00:19:28]} {[%emt 00:01:14]}
9. O-O {[%clk 00:20:23]} {[%emt 00:00:36]} Be7 {[%clk 00:19:35]} {[%emt
00:00:04]} 10. Ng5 {[%clk 00:19:55]} {[%emt 00:00:37]} h6 {[%clk 00:19:30]}
{[%emt 00:00:15]} 11. Nf3 {[%clk 00:19:54]} {[%emt 00:00:11]} b5 {[%clk
00:17:37]} {[%emt 00:02:04]} 12. Bb3 {[%clk 00:19:22]} {[%emt 00:00:41]} b4
{[%clk 00:17:33]} {[%emt 00:00:14]} 13. Ne2 {[%clk 00:18:52]} {[%emt 00:00:40]}
Nxe4 {[%clk 00:17:29]} {[%emt 00:00:14]} 14. Qc2 {[%clk 00:18:45]} {[%emt
00:00:16]} Nc5 {[%clk 00:17:08]} {[%emt 00:00:33]} 15. Rad1 {[%clk 00:18:31]}
{[%emt 00:00:22]} Qc7 {[%clk 00:16:48]} {[%emt 00:00:36]} 16. Bxc5 {[%clk
00:17:14]} {[%emt 00:01:22]} dxc5 {[%clk 00:16:56]} {[%emt 00:00:02]} 17. Ba4
{[%clk 00:15:21]} {[%emt 00:02:03]} O-O {[%clk 00:15:30]} {[%emt 00:01:36]} 18.
Qe4 {[%clk 00:14:24]} {[%emt 00:01:08]} Bb7 {[%clk 00:15:26]} {[%emt 00:00:14]}
19. Bxc6 {[%clk 00:14:10]} {[%emt 00:00:23]} Bxc6 {[%clk 00:15:16]} {[%emt
00:00:21]} 20. Qg4 {[%clk 00:14:19]} Bxf3 {[%clk 00:14:12]} {[%emt 00:01:13]}
21. Qxf3 {[%clk 00:14:18]} {[%emt 00:00:11]} Bf6 {[%clk 00:14:09]} {[%emt
00:00:13]} 22. Rd2 {[%clk 00:13:37]} {[%emt 00:00:52]} Rfd8 {[%clk 00:14:15]}
{[%emt 00:00:04]} 23. Rfd1 {[%clk 00:13:41]} {[%emt 00:00:06]} Bxb2 {[%clk
00:13:51]} {[%emt 00:00:34]} 24. Ng3 {[%clk 00:13:38]} {[%emt 00:00:13]} Bc3
{[%clk 00:13:30]} {[%emt 00:00:31]} 25. Rc2 {[%clk 00:12:13]} {[%emt 00:01:35]}
Rxd1+ {[%clk 00:13:34]} {[%emt 00:00:06]} 26. Qxd1 {[%clk 00:12:21]} {[%emt
00:00:01]} Rd8 {[%clk 00:13:43]} {[%emt 00:00:02]} 27. Qe2 {[%clk 00:12:27]}
{[%emt 00:00:03]} Qd6 {[%clk 00:13:36]} {[%emt 00:00:17]} 28. Rc1 {[%clk
00:12:27]} {[%emt 00:00:11]} Qd2 {[%clk 00:13:33]} {[%emt 00:00:12]} 29. Qxd2
{[%clk 00:12:14]} {[%emt 00:00:23]} Rxd2 {[%clk 00:13:40]} {[%emt 00:00:03]} 30.
Ne4 {[%clk 00:12:18]} {[%emt 00:00:06]} Rxa2 {[%clk 00:13:47]} {[%emt
00:00:03]} 31. Nxc5 {[%clk 00:12:09]} {[%emt 00:00:20]} Bd4 {[%clk 00:13:33]}
{[%emt 00:00:24]} 32. Nd3 {[%clk 00:11:59]} {[%emt 00:00:20]} Rd2 {[%clk
00:13:24]} {[%emt 00:00:19]} 33. Nxb4 {[%clk 00:11:40]} {[%emt 00:00:28]} Rxf2
{[%clk 00:13:28]} {[%emt 00:00:05]} 34. Kh1 {[%clk 00:11:44]} {[%emt 00:00:07]}
a5 {[%clk 00:12:57]} {[%emt 00:00:42]} 35. Nc6 {[%clk 00:11:33]} {[%emt
00:00:21]} Bb2 {[%clk 00:13:01]} {[%emt 00:00:06]} 36. Rb1 {[%clk 00:11:34]}
{[%emt 00:00:09]} a4 {[%clk 00:13:10]} 37. h3 {[%clk 00:11:38]} {[%emt
00:00:06]} a3 {[%clk 00:13:18]} {[%emt 00:00:02]} 38. Nb4 {[%clk 00:11:46]}
{[%emt 00:00:03]} Bc3 {[%clk 00:12:57]} {[%emt 00:00:31]} 39. Kh2 {[%clk
00:10:47]} {[%emt 00:01:06]} Rb2 {[%clk 00:12:31]} {[%emt 00:00:38]} 0-1

[Event "Velká cena Novohradska - A"]
[Site "Nové Hrady, Czech Republic"]
[Date "2024.10.12"]
[Round "7.3"]
[White "Postl, František"]
[Black "Dudarec, Elias"]
[Result "0-1"]
[TimeControl "2x20min+10s/tah"]
[WhiteFideId "23709448"]
[BlackFideId "23714930"]
[WhiteElo "1514"]
[BlackElo "1588"]

1. e4 {[%clk 00:20:19]} e6 {[%clk 00:20:14]} {[%emt 00:00:06]} 2. d4 {[%clk
00:20:00]} {[%emt 00:00:29]} d5 {[%clk 00:20:23]} {[%emt 00:00:02]} 3. Nd2
{[%clk 00:19:55]} {[%emt 00:00:14]} c5 {[%clk 00:20:31]} {[%emt 00:00:03]} 4.
c3 {[%clk 00:19:57]} {[%emt 00:00:08]} Nc6 {[%clk 00:20:36]} {[%emt 00:00:04]}
5. Ndf3 {[%clk 00:19:51]} {[%emt 00:00:16]} dxe4 {[%clk 00:20:33]} {[%emt
00:00:14]} 6. Ng5 {[%clk 00:19:21]} {[%emt 00:00:40]} cxd4 {[%clk 00:20:30]}
{[%emt 00:00:12]} 7. cxd4 {[%clk 00:19:27]} {[%emt 00:00:05]} Qxd4 {[%clk
00:20:23]} {[%emt 00:00:17]} 8. Qxd4 {[%clk 00:18:54]} {[%emt 00:00:42]} Nxd4
{[%clk 00:20:32]} {[%emt 00:00:02]} 9. Kd1 {[%clk 00:18:01]} {[%emt 00:01:03]}
f5 {[%clk 00:20:21]} {[%emt 00:00:20]} 10. Be3 {[%clk 00:17:43]} {[%emt
00:00:28]} Nc6 {[%clk 00:17:26]} {[%emt 00:03:06]} 11. Bc4 {[%clk 00:17:33]}
{[%emt 00:00:20]} Ke7 {[%clk 00:17:25]} {[%emt 00:00:09]} 12. Bc5+ {[%clk
00:16:51]} {[%emt 00:00:53]} Ke8 {[%clk 00:17:27]} {[%emt 00:00:08]} 13. Bxf8
{[%clk 00:16:26]} {[%emt 00:00:36]} Kxf8 {[%clk 00:17:34]} {[%emt 00:00:02]} 14.
Nxe6+ {[%clk 00:16:31]} {[%emt 00:00:04]} Bxe6 {[%clk 00:17:21]} {[%emt
00:00:24]} 15. Bxe6 {[%clk 00:16:36]} {[%emt 00:00:05]} Rd8+ {[%clk 00:17:27]}
{[%emt 00:00:04]} 16. Ke1 {[%clk 00:16:36]} {[%emt 00:00:10]} Nd4 {[%clk
00:17:31]} {[%emt 00:00:06]} 17. Bb3 {[%clk 00:15:50]} {[%emt 00:00:57]} Nxb3
{[%clk 00:17:38]} {[%emt 00:00:03]} 18. axb3 {[%clk 00:15:58]} {[%emt
00:00:01]} a6 {[%clk 00:17:46]} {[%emt 00:00:06]} 19. Ne2 {[%clk 00:16:04]} Nf6
{[%clk 00:17:54]} {[%emt 00:00:02]} 20. Nf4 {[%clk 00:16:07]} {[%emt 00:00:08]}
Kf7 {[%clk 00:17:55]} {[%emt 00:00:08]} 21. Rc1 {[%clk 00:16:08]} {[%emt
00:00:09]} Rd7 {[%clk 00:17:20]} {[%emt 00:00:45]} 22. Rc5 {[%clk 00:15:34]}
{[%emt 00:00:44]} Rhd8 {[%clk 00:17:21]} {[%emt 00:00:09]} 23. Rc1 {[%clk
00:13:08]} {[%emt 00:03:16]} Rd2 {[%clk 00:16:55]} {[%emt 00:00:34]} 24. Rc7+
{[%clk 00:13:14]} {[%emt 00:00:03]} Ke8 {[%clk 00:16:21]} {[%emt 00:00:43]} 25.
Rc1 {[%clk 00:11:11]} {[%emt 00:02:14]} Rxb2 {[%clk 00:15:31]} {[%emt
00:01:00]} 26. Ne6 {[%clk 00:11:18]} {[%emt 00:00:03]} Rdd2 {[%clk 00:15:25]}
{[%emt 00:00:16]} 27. Nxg7+ {[%clk 00:11:26]} {[%emt 00:00:03]} Kf7 {[%clk
00:15:33]} 28. Rc7+ {[%clk 00:11:32]} {[%emt 00:00:06]} Kg6 {[%clk 00:15:36]}
{[%emt 00:00:06]} 29. h4 {[%clk 00:11:03]} {[%emt 00:00:39]} Re2+ {[%clk
00:15:23]} {[%emt 00:00:24]} 30. Kd1 {[%clk 00:11:11]} {[%emt 00:00:02]} h5
{[%clk 00:14:19]} {[%emt 00:01:14]} 31. Rh3 {[%clk 00:11:01]} {[%emt 00:00:19]}
Rxf2 {[%clk 00:14:03]} {[%emt 00:00:26]} 32. Rg3+ {[%clk 00:11:04]} {[%emt
00:00:08]} Ng4 {[%clk 00:14:12]} 33. Kc1 {[%clk 00:09:52]} {[%emt 00:01:22]} f4
{[%clk 00:13:24]} {[%emt 00:00:58]} 34. Rgc3 {[%clk 00:08:22]} {[%emt
00:01:40]} Rbe2 {[%clk 00:13:13]} {[%emt 00:00:20]} 35. Kb1 {[%clk 00:06:27]}
{[%emt 00:02:05]} Re1+ {[%clk 00:13:13]} {[%emt 00:00:10]} 36. Rc1 {[%clk
00:06:36]} {[%emt 00:00:02]} Rxc1+ {[%clk 00:13:21]} {[%emt 00:00:02]} 37. Kxc1
{[%clk 00:06:42]} {[%emt 00:00:03]} Rxg2 {[%clk 00:12:10]} {[%emt 00:01:22]} 38.
Ne8 {[%clk 00:06:24]} {[%emt 00:00:28]} f3 {[%clk 00:11:57]} {[%emt 00:00:23]}
39. Rg7+ {[%clk 00:06:30]} {[%emt 00:00:04]} Kh6 {[%clk 00:12:04]} {[%emt
00:00:02]} 40. Rg8 {[%clk 00:06:16]} {[%emt 00:00:25]} f2 {[%clk 00:11:57]}
{[%emt 00:00:17]} 0-1

[Event "Velká cena Novohradska - A"]
[Site "Nové Hrady, Czech Republic"]
[Date "2024.10.12"]
[Round "7.4"]
[White "Ponomarenko, Marko"]
[Black "Borecký, Andrej"]
[Result "0-1"]
[TimeControl "2x20min+10s/tah"]
[WhiteFideId "23777931"]
[BlackFideId "23752670"]
[WhiteElo "1498"]
[BlackElo "1778"]

1. e4 {[%clk 00:20:19]} {[%emt 00:06:04]} c5 {[%clk 00:20:18]} {[%emt
00:00:03]} 2. Nc3 {[%clk 00:20:26]} {[%emt 00:00:02]} e6 {[%clk 00:20:19]}
{[%emt 00:00:09]} 3. Bc4 {[%clk 00:20:28]} {[%emt 00:00:08]} Nc6 {[%clk
00:19:55]} {[%emt 00:00:33]} 4. d3 {[%clk 00:20:34]} {[%emt 00:00:04]} Nge7
{[%clk 00:19:37]} {[%emt 00:00:29]} 5. f4 {[%clk 00:20:35]} {[%emt 00:00:08]}
d5 {[%clk 00:19:03]} {[%emt 00:00:44]} 6. exd5 {[%clk 00:20:29]} {[%emt
00:00:17]} exd5 {[%clk 00:19:10]} {[%emt 00:00:03]} 7. Bb5 {[%clk 00:20:35]}
{[%emt 00:00:04]} a6 {[%clk 00:19:11]} {[%emt 00:00:09]} 8. Bxc6+ {[%clk
00:20:39]} {[%emt 00:00:06]} Nxc6 {[%clk 00:19:19]} {[%emt 00:00:02]} 9. Nf3
{[%clk 00:20:47]} {[%emt 00:00:02]} Be7 {[%clk 00:19:14]} {[%emt 00:00:15]} 10.
O-O {[%clk 00:20:54]} {[%emt 00:00:03]} O-O {[%clk 00:19:21]} {[%emt 00:00:03]}
11. Ne5 {[%clk 00:20:39]} {[%emt 00:00:24]} Bf6 {[%clk 00:18:20]} {[%emt
00:01:11]} 12. Nxc6 {[%clk 00:20:26]} {[%emt 00:00:24]} bxc6 {[%clk 00:18:26]}
{[%emt 00:00:05]} 13. Rb1 {[%clk 00:20:22]} {[%emt 00:00:12]} Rb8 {[%clk
00:18:28]} {[%emt 00:00:10]} 14. Bd2 {[%clk 00:20:27]} {[%emt 00:00:04]} Re8
{[%clk 00:17:58]} {[%emt 00:00:39]} 15. Qf3 {[%clk 00:20:16]} {[%emt 00:00:21]}
h6 {[%clk 00:15:26]} {[%emt 00:02:43]} 16. f5 {[%clk 00:20:11]} {[%emt
00:00:15]} Re5 {[%clk 00:14:23]} {[%emt 00:01:11]} 17. Qg4 {[%clk 00:19:55]}
{[%emt 00:00:27]} Qd7 {[%clk 00:12:54]} {[%emt 00:01:40]} 18. Bxh6 {[%clk
00:18:48]} {[%emt 00:01:17]} Rxf5 {[%clk 00:12:59]} {[%emt 00:00:05]} 19. Rxf5
{[%clk 00:18:49]} {[%emt 00:00:08]} Qxf5 {[%clk 00:13:07]} {[%emt 00:00:03]} 20.
Qxf5 {[%clk 00:18:53]} {[%emt 00:00:06]} Bxf5 {[%clk 00:13:15]} {[%emt
00:00:02]} 21. Bd2 {[%clk 00:18:58]} {[%emt 00:00:05]} c4 {[%clk 00:12:36]}
{[%emt 00:00:49]} 22. Bf4 {[%clk 00:18:06]} {[%emt 00:01:01]} Rb7 {[%clk
00:11:09]} {[%emt 00:01:38]} 23. Na4 {[%clk 00:16:48]} {[%emt 00:01:28]} cxd3
{[%clk 00:10:36]} {[%emt 00:00:42]} 24. cxd3 {[%clk 00:16:54]} {[%emt
00:00:04]} Rb4 {[%clk 00:10:34]} {[%emt 00:00:13]} 0-1

[Event "Velká cena Novohradska - A"]
[Site "Nové Hrady, Czech Republic"]
[Date "2024.10.12"]
[Round "7.5"]
[White "Šebesta, Marek"]
[Black "Čech, Nicolas"]
[Result "1-0"]
[TimeControl "2x20min+10s/tah"]
[WhiteFideId "23765119"]
[BlackFideId "23764228"]
[WhiteElo "1707"]
[BlackElo "1626"]

1. e4 {[%clk 00:20:20]} {[%emt 00:03:35]} c5 {[%clk 00:20:18]} {[%emt
00:00:03]} 2. Nf3 {[%clk 00:20:28]} e6 {[%clk 00:20:25]} {[%emt 00:00:04]} 3.
d4 {[%clk 00:20:37]} cxd4 {[%clk 00:20:34]} 4. Nxd4 {[%clk 00:20:45]} {[%emt
00:00:04]} Nc6 {[%clk 00:20:43]} {[%emt 00:00:02]} 5. Nc3 {[%clk 00:20:52]}
{[%emt 00:00:03]} Qc7 {[%clk 00:20:43]} {[%emt 00:00:09]} 6. Bc4 {[%clk
00:20:30]} {[%emt 00:00:33]} Nf6 {[%clk 00:20:26]} {[%emt 00:00:26]} 7. Bb3
{[%clk 00:20:38]} Be7 {[%clk 00:19:58]} {[%emt 00:00:40]} 8. Be3 {[%clk
00:20:26]} {[%emt 00:00:22]} a6 {[%clk 00:19:43]} {[%emt 00:00:25]} 9. a4
{[%clk 00:20:22]} {[%emt 00:00:14]} O-O {[%clk 00:19:45]} {[%emt 00:00:07]} 10.
f3 {[%clk 00:20:31]} Rd8 {[%clk 00:16:30]} {[%emt 00:03:27]} 11. Qd2 {[%clk
00:19:04]} {[%emt 00:01:37]} Na5 {[%clk 00:14:47]} {[%emt 00:01:53]} 12. O-O
{[%clk 00:16:42]} {[%emt 00:02:31]} Nxb3 {[%clk 00:14:00]} {[%emt 00:00:58]} 13.
cxb3 {[%clk 00:16:49]} {[%emt 00:00:04]} d5 {[%clk 00:13:50]} {[%emt 00:00:19]}
14. Rac1 {[%clk 00:15:57]} {[%emt 00:01:01]} Qa5 {[%clk 00:11:14]} {[%emt
00:02:47]} 15. Nxd5 {[%clk 00:14:28]} {[%emt 00:01:40]} Qxd2 {[%clk 00:10:23]}
{[%emt 00:01:01]} 16. Nxe7+ {[%clk 00:14:36]} {[%emt 00:00:02]} Kf8 {[%clk
00:10:30]} {[%emt 00:00:02]} 17. Bxd2 {[%clk 00:14:41]} {[%emt 00:00:05]} Rxd4
{[%clk 00:09:32]} {[%emt 00:01:08]} 18. Bc3 {[%clk 00:13:55]} {[%emt 00:00:57]}
Rd7 {[%clk 00:07:24]} {[%emt 00:02:17]} 19. Bxf6 {[%clk 00:13:44]} {[%emt
00:00:21]} gxf6 {[%clk 00:06:47]} {[%emt 00:00:47]} 20. Nxc8 {[%clk 00:13:49]}
{[%emt 00:00:05]} Rd2 {[%clk 00:06:33]} {[%emt 00:00:24]} 21. Nb6 {[%clk
00:13:43]} {[%emt 00:00:16]} Rad8 {[%clk 00:06:17]} {[%emt 00:00:26]} 22. Nc4
{[%clk 00:13:42]} {[%emt 00:00:08]} Re2 {[%clk 00:06:10]} {[%emt 00:00:20]} 23.
Rf2 {[%clk 00:13:41]} {[%emt 00:00:11]} Rxf2 {[%clk 00:06:09]} {[%emt
00:00:10]} 24. Kxf2 {[%clk 00:13:49]} {[%emt 00:00:04]} b5 {[%clk 00:06:17]} 25.
axb5 {[%clk 00:12:40]} {[%emt 00:01:20]} axb5 {[%clk 00:06:26]} {[%emt
00:00:02]} 26. Na3 {[%clk 00:12:24]} {[%emt 00:00:25]} Rd2+ {[%clk 00:06:22]}
{[%emt 00:00:14]} 27. Kg3 {[%clk 00:12:33]} {[%emt 00:00:01]} Rxb2 {[%clk
00:06:30]} {[%emt 00:00:02]} 28. Rb1 {[%clk 00:12:38]} {[%emt 00:00:05]} 1-0

[Event "Velká cena Novohradska - A"]
[Site "Nové Hrady, Czech Republic"]
[Date "2024.10.12"]
[Round "7.6"]
[White "Hokr, Matyáš"]
[Black "Hejda, Ondřej"]
[Result "1-0"]
[TimeControl "2x20min+10s/tah"]
[WhiteFideId "23734663"]
[BlackFideId "23713623"]
[WhiteElo "1534"]
[BlackElo "1702"]

1. e4 {[%clk 00:20:15]} {[%emt 00:00:05]} d5 {[%clk 00:20:18]} {[%emt
00:00:02]} 2. exd5 {[%clk 00:20:23]} {[%emt 00:00:02]} Qxd5 {[%clk 00:20:27]}
{[%emt 00:00:02]} 3. Nc3 {[%clk 00:20:32]} Qa5 {[%clk 00:20:33]} {[%emt
00:00:05]} 4. d4 {[%clk 00:20:21]} {[%emt 00:00:18]} c6 {[%clk 00:20:35]}
{[%emt 00:00:10]} 5. Nf3 {[%clk 00:20:17]} {[%emt 00:00:14]} Bg4 {[%clk
00:20:42]} {[%emt 00:00:03]} 6. Be2 {[%clk 00:20:25]} e6 {[%clk 00:20:41]}
{[%emt 00:00:12]} 7. h3 {[%clk 00:20:25]} {[%emt 00:00:09]} Bh5 {[%clk
00:20:50]} 8. Ne5 {[%clk 00:20:09]} {[%emt 00:00:27]} Bg6 {[%clk 00:20:49]}
{[%emt 00:00:10]} 9. Bf4 {[%clk 00:20:01]} {[%emt 00:00:18]} Nf6 {[%clk
00:20:03]} {[%emt 00:00:58]} 10. O-O {[%clk 00:18:20]} {[%emt 00:01:50]} Bb4
{[%clk 00:19:15]} {[%emt 00:00:59]} 11. Nxg6 {[%clk 00:18:06]} {[%emt
00:00:24]} hxg6 {[%clk 00:19:19]} {[%emt 00:00:06]} 12. Qd3 {[%clk 00:18:11]}
{[%emt 00:00:04]} Nbd7 {[%clk 00:17:36]} {[%emt 00:01:52]} 13. Rfb1 {[%clk
00:17:36]} {[%emt 00:00:45]} O-O {[%clk 00:16:57]} {[%emt 00:00:50]} 14. a3
{[%clk 00:17:19]} {[%emt 00:00:28]} Be7 {[%clk 00:16:39]} {[%emt 00:00:25]} 15.
b4 {[%clk 00:17:12]} {[%emt 00:00:20]} Qd8 {[%clk 00:15:58]} {[%emt 00:00:51]}
16. b5 {[%clk 00:16:41]} {[%emt 00:00:38]} Nd5 {[%clk 00:14:47]} {[%emt
00:01:24]} 17. Nxd5 {[%clk 00:16:36]} {[%emt 00:00:15]} cxd5 {[%clk 00:14:51]}
{[%emt 00:00:06]} 18. Qb3 {[%clk 00:14:52]} {[%emt 00:01:53]} Nf6 {[%clk
00:13:42]} {[%emt 00:01:17]} 19. Bd3 {[%clk 00:13:44]} {[%emt 00:01:15]} Qb6
{[%clk 00:12:16]} {[%emt 00:01:42]} 20. c3 {[%clk 00:12:32]} {[%emt 00:01:14]}
Rac8 {[%clk 00:09:50]} {[%emt 00:02:45]} 21. Rc1 {[%clk 00:12:28]} {[%emt
00:00:13]} Bd6 {[%clk 00:09:39]} {[%emt 00:00:20]} 22. Bg5 {[%clk 00:11:02]}
{[%emt 00:01:24]} Nh7 {[%clk 00:07:47]} {[%emt 00:02:14]} 23. Be3 {[%clk
00:11:02]} {[%emt 00:00:10]} Rcd8 {[%clk 00:06:43]} {[%emt 00:01:11]} 24. c4
{[%clk 00:10:39]} {[%emt 00:00:37]} Qc7 {[%clk 00:06:19]} {[%emt 00:00:31]} 25.
c5 {[%clk 00:10:34]} {[%emt 00:00:18]} Bf4 {[%clk 00:06:11]} {[%emt 00:00:17]}
26. Bf1 {[%clk 00:10:30]} {[%emt 00:00:15]} Bxe3 {[%clk 00:04:37]} {[%emt
00:01:44]} 27. Qxe3 {[%clk 00:10:28]} {[%emt 00:00:12]} Nf6 {[%clk 00:04:07]}
{[%emt 00:00:41]} 28. Qb3 {[%clk 00:10:14]} {[%emt 00:00:23]} Ne4 {[%clk
00:03:12]} {[%emt 00:01:05]} 29. a4 {[%clk 00:09:27]} {[%emt 00:00:57]} Qf4
{[%clk 00:02:57]} {[%emt 00:00:24]} 30. Qb2 {[%clk 00:09:16]} {[%emt 00:00:21]}
Rb8 {[%clk 00:02:21]} {[%emt 00:00:46]} 31. a5 {[%clk 00:09:11]} {[%emt
00:00:16]} Rfc8 {[%clk 00:02:06]} {[%emt 00:00:25]} 32. b6 {[%clk 00:06:58]}
{[%emt 00:02:23]} a6 {[%clk 00:02:00]} {[%emt 00:00:16]} 33. Ra3 {[%clk
00:06:27]} {[%emt 00:00:41]} Qf6 {[%clk 00:00:55]} {[%emt 00:01:13]} 34. Rf3
{[%clk 00:06:25]} {[%emt 00:00:13]} Qe7 {[%clk 00:01:02]} {[%emt 00:00:03]} 35.
Bd3 {[%clk 00:06:11]} {[%emt 00:00:24]} Ng5 {[%clk 00:01:04]} {[%emt 00:00:09]}
36. Re3 {[%clk 00:06:02]} {[%emt 00:00:17]} Re8 {[%clk 00:00:53]} {[%emt
00:00:20]} 37. Rce1 {[%clk 00:04:40]} {[%emt 00:01:32]} Nh7 {[%clk 00:00:43]}
{[%emt 00:00:23]} 38. Qb3 {[%clk 00:04:32]} {[%emt 00:00:18]} Qd7 {[%clk
00:00:41]} {[%emt 00:00:11]} 39. Rc1 {[%clk 00:03:56]} {[%emt 00:00:47]} Nf6
{[%clk 00:00:49]} {[%emt 00:00:02]} 40. Bb1 {[%clk 00:03:59]} {[%emt 00:00:07]}
Re7 {[%clk 00:00:50]} {[%emt 00:00:10]} 41. Rec3 {[%clk 00:04:03]} {[%emt
00:00:06]} Ne4 {[%clk 00:00:51]} {[%emt 00:00:08]} 42. Re3 {[%clk 00:03:58]}
{[%emt 00:00:15]} Rc8 {[%clk 00:00:47]} {[%emt 00:00:15]} 43. Qb4 {[%clk
00:03:03]} {[%emt 00:01:04]} e5 {[%clk 00:00:33]} {[%emt 00:00:24]} 44. Bxe4
{[%clk 00:01:49]} {[%emt 00:01:24]} dxe4 {[%clk 00:00:34]} {[%emt 00:00:09]} 45.
Rxe4 {[%clk 00:01:21]} {[%emt 00:00:37]} exd4 {[%clk 00:00:28]} {[%emt
00:00:17]} 46. Rxe7 {[%clk 00:01:28]} {[%emt 00:00:04]} Qxe7 {[%clk 00:00:34]}
{[%emt 00:00:03]} 47. Qxd4 {[%clk 00:01:33]} {[%emt 00:00:05]} Qg5 {[%clk
00:00:38]} {[%emt 00:00:05]} 48. Qe3 {[%clk 00:01:32]} {[%emt 00:00:11]} Qd5
{[%clk 00:00:38]} {[%emt 00:00:09]} 49. Qc3 {[%clk 00:00:47]} {[%emt 00:00:58]}
Qc6 {[%clk 00:00:26]} {[%emt 00:00:21]} 50. Qf3 {[%clk 00:00:50]} {[%emt
00:00:06]} Qd7 {[%clk 00:00:25]} {[%emt 00:00:09]} 51. Qe3 {[%clk 00:00:43]}
{[%emt 00:00:20]} Re8 {[%clk 00:00:27]} {[%emt 00:00:08]} 52. Qc3 {[%clk
00:00:49]} {[%emt 00:00:04]} Qc6 {[%clk 00:00:32]} {[%emt 00:00:06]} 53. Qf3
{[%clk 00:00:54]} {[%emt 00:00:04]} Qd7 {[%clk 00:00:37]} {[%emt 00:00:05]} 54.
c6 {[%clk 00:00:55]} {[%emt 00:00:10]} bxc6 {[%clk 00:00:29]} {[%emt 00:00:17]}
55. Qxc6 {[%clk 00:00:51]} {[%emt 00:00:13]} Qe7 {[%clk 00:00:22]} {[%emt
00:00:17]} 56. b7 {[%clk 00:00:57]} {[%emt 00:00:06]} Kh7 {[%clk 00:00:16]}
{[%emt 00:00:15]} 57. Qc8 {[%clk 00:00:56]} {[%emt 00:00:12]} Qa3 {[%emt
00:00:16]} 1-0

[Event "Velká cena Novohradska - A"]
[Site "Nové Hrady, Czech Republic"]
[Date "2024.10.12"]
[Round "7.7"]
[White "Polanský, Matěj"]
[Black "Mountassir, Karim"]
[Result "0-1"]
[TimeControl "2x20min+10s/tah"]
[WhiteFideId "23741872"]
[BlackFideId "23746327"]
[WhiteElo "1475"]
[BlackElo "1614"]

1. e4 {[%clk 00:20:19]} {[%emt 00:00:02]} e5 {[%clk 00:20:18]} {[%emt
00:00:02]} 2. Nc3 {[%clk 00:20:27]} {[%emt 00:00:02]} Nc6 {[%clk 00:19:48]}
{[%emt 00:00:40]} 3. f4 {[%clk 00:20:28]} {[%emt 00:00:08]} exf4 {[%clk
00:19:42]} {[%emt 00:00:17]} 4. Nf3 {[%clk 00:20:36]} {[%emt 00:00:02]} Bc5
{[%clk 00:19:15]} {[%emt 00:00:38]} 5. Bb5 {[%clk 00:20:27]} {[%emt 00:00:18]}
Nd4 {[%clk 00:19:01]} {[%emt 00:00:24]} 6. Nxd4 {[%clk 00:17:42]} {[%emt
00:02:56]} Bxd4 {[%clk 00:19:08]} {[%emt 00:00:02]} 7. Qg4 {[%clk 00:17:12]}
{[%emt 00:00:39]} c6 {[%clk 00:16:20]} {[%emt 00:02:59]} 8. Bc4 {[%clk
00:16:57]} {[%emt 00:00:24]} d5 {[%clk 00:15:56]} {[%emt 00:00:35]} 9. Qxf4
{[%clk 00:15:02]} {[%emt 00:02:04]} dxc4 {[%clk 00:15:47]} {[%emt 00:00:19]} 10.
Rf1 {[%clk 00:14:45]} {[%emt 00:00:26]} Nh6 {[%clk 00:15:23]} {[%emt 00:00:36]}
11. d3 {[%clk 00:12:04]} {[%emt 00:02:50]} cxd3 {[%clk 00:14:41]} {[%emt
00:00:52]} 12. cxd3 {[%clk 00:11:55]} {[%emt 00:00:20]} O-O {[%clk 00:13:53]}
{[%emt 00:00:58]} 13. Qg3 {[%clk 00:11:32]} {[%emt 00:00:31]} Kh8 {[%clk
00:11:30]} {[%emt 00:02:35]} 14. Bd2 {[%clk 00:09:29]} {[%emt 00:02:13]} f5
{[%clk 00:09:27]} {[%emt 00:02:13]} 15. O-O-O {[%clk 00:07:40]} {[%emt
00:01:58]} fxe4 {[%clk 00:08:21]} {[%emt 00:01:17]} 16. dxe4 {[%clk 00:07:10]}
{[%emt 00:00:40]} Bg4 {[%clk 00:05:53]} {[%emt 00:02:39]} 17. Bxh6 {[%clk
00:06:00]} {[%emt 00:01:18]} Bxd1 {[%clk 00:05:54]} {[%emt 00:00:09]} 18. Rxd1
{[%clk 00:04:09]} {[%emt 00:02:00]} gxh6 {[%clk 00:05:59]} {[%emt 00:00:06]} 19.
Ne2 {[%clk 00:03:58]} {[%emt 00:00:20]} c5 {[%clk 00:05:27]} {[%emt 00:00:44]}
20. Nf4 {[%clk 00:03:01]} {[%emt 00:01:05]} Qg5 {[%clk 00:04:19]} {[%emt
00:01:19]} 21. Qxg5 {[%clk 00:02:49]} {[%emt 00:00:21]} hxg5 {[%clk 00:04:28]}
{[%emt 00:00:03]} 22. Ne6 {[%clk 00:02:47]} {[%emt 00:00:09]} Be3+ {[%clk
00:04:04]} {[%emt 00:00:37]} 23. Kc2 {[%clk 00:02:04]} {[%emt 00:00:52]} Rf6
{[%clk 00:03:48]} {[%emt 00:00:27]} 24. Nc7 {[%clk 00:01:11]} {[%emt 00:01:03]}
Rc8 {[%clk 00:03:03]} {[%emt 00:00:54]} 25. Nd5 {[%clk 00:01:08]} {[%emt
00:00:14]} Rf2+ {[%clk 00:03:07]} {[%emt 00:00:06]} 26. Kd3 {[%clk 00:01:12]}
{[%emt 00:00:03]} Bd4 {[%clk 00:03:07]} {[%emt 00:00:12]} 27. Re1 {[%clk
00:01:00]} {[%emt 00:00:20]} Rd8 {[%clk 00:02:31]} {[%emt 00:00:49]} 0-1